[Event "Gibraltar Amateurs A 2019"]
[Site "Caleta"]
[Date "2019.01.21"]
[Round "1"]
[White "Fong, Mi Yen"]
[Black "Omtvedt, Aleksander"]
[Result "1/2-1/2"]
[ECO "C42"]
[WhiteElo "1687"]
[BlackElo "1896"]
[Annotator "NA"]
[PlyCount "74"]
[EventDate "2019.01.21"]
[EventType "swiss"]
[EventCountry "GGB"]
[SourceTitle "playchess.com"]
[Source "ChessBase"]
[SourceQuality "1"]
[TimeControl "6600+10"]

1. e4 {[%emt 0:00:26]} e5 {[%emt 0:00:20]} 2. Nf3 {[%emt 0:00:00]} Nf6 {[%emt 0:01:42]} 3. Bc4 {[%emt 0:02:06]} Nxe4 {[%emt 0:02:11]} 4. Nxe5 {[%emt 0:02:19]} d5 {[%emt 0:03:02]} 5. Qf3 {[%emt 0:05:05] C42: Petroff Defence: 3 Nxe5 and unusual White 3rd moves} (5. Bb3 Qg5 6. Qe2 Qxe5 7. d3 Nc6 8. dxe4 Nd4 9. Qe3 Bc5 10. Qf4 Qxe4+ 11. Qxe4+ dxe4 12. Be3 Bd7 {0-1 (28) Calio,M (2330)-Junge,W (2351) ICCF email 2016}) 5... Be6 {[%emt 0:07:59]} 6. Be2 {[%emt 0:02:51]} Nd7 $146 {[%emt 0:04:47]} ({Predecessor:} 6... Bd6 7. d4 f6 8. Nc4 Be7 9. Ncd2 f5 10. O-O Qd7 11. Qb3 Nc6 12. c3 O-O-O {½-½ (61) Dassisti,A (1921)-Corso,G (1804) Milan 2012}) 7. d4 {[%emt 0:00:03]} Nxe5 {[%emt 0:01:04]} 8. dxe5 {[%emt 0:00:13]} Be7 {[%emt 0:00:00]} 9. Nd2 {[%emt 0:11:01]} Nxd2 {[%emt 0:00:00]} 10. Bxd2 {[%emt 0:00:17]} Qd7 {[%emt 0:00:00]} 11. O-O {[%emt 0:09:32]} O-O {[%emt 0:00:00]} 12. Qg3 {[%emt 0:00:20]} f6 {[%emt 0:00:00]} 13. Bh6 {[%emt 0:12:15]} Bc5 {[%emt 0:00:00]} 14. Bf4 {[%emt 0:00:09]} c6 {[%emt 0:00:00]} 15. Rad1 {[%emt 0:00:04]} Qf7 {[%emt 0:00:12]} 16. Bd3 {[%emt 0:00:18]} Rae8 {[%emt 0:00:00]} 17. Rd2 {[%emt 0:11:50]} Bb6 {[%emt 0:00:00]} 18. Kh1 {[%emt 0:08:02]} Bd7 {[%emt 0:00:18]} 19. h4 {[%emt 0:09:10]} c5 {[%emt 0:00:00]} 20. c4 {[%emt 0:08:31]} dxc4 {[%emt 0:00:27]} 21. Be4 {[%emt 0:01:27]} Be6 {[%emt 0:00:10]} 22. exf6 {[%emt 0:02:41]} Qxf6 {[%emt 0:00:00]} 23. Be5 {[%emt 0:02:51]} Qh6 {[%emt 0:01:48]} 24. Bf3 {[%emt 0:08:07]} Bd8 {[%emt 0:00:00]} 25. h5 {[%emt 0:06:24]} Rf5 {[%emt 0:00:15]} 26. Bg4 {[%emt 0:10:29]} Rxe5 {[%emt 0:00:00]} 27. Qxe5 {[%emt 0:00:08]} Qxd2 {[%emt 0:00:04]} 28. Bxe6+ {[%emt 0:06:19]} Kh8 {[%emt 0:00:00]} 29. Qxc5 {[%emt 0:01:49]} Qxb2 {[%emt 0:00:01]} 30. Bxc4 $11 {[%emt 0:00:16]} Bb6 {[%emt 0:01:09]} 31. Qf5 {[%emt 0:01:38]} Qe5 {[%emt 0:00:46]} 32. Qxe5 {[%emt 0:00:00]} Rxe5 {[%emt 0:00:10]} 33. Bf7 {[%emt 0:00:00]} Re7 {[%emt 0:02:14]} 34. Bd5 {[%emt 0:00:00]} Re5 {[%emt 0:03:17]} 35. Bf3 {[%emt 0:00:00]} Kg8 {[%emt 0:00:56]} 36. g4 {[%emt 0:00:00]} Re7 {[%emt 0:00:35]} 37. Kg2 {[%emt 0:00:00]} Kf7 {[%emt 0:00:43]} 1/2-1/2

[Event "Gibraltar Amateurs A 2019"]
[Site "Caleta"]
[Date "2019.01.21"]
[Round "1"]
[White "Krause, Helmut"]
[Black "Gonzalez Pabollet, Jesus Maria S"]
[Result "0-1"]
[ECO "D05"]
[WhiteElo "1668"]
[BlackElo "1875"]
[Annotator "NA"]
[PlyCount "44"]
[EventDate "2019.01.21"]
[EventType "swiss"]
[EventCountry "GGB"]
[SourceTitle "playchess.com"]
[Source "ChessBase"]
[SourceQuality "1"]
[TimeControl "6600+10"]

1. d4 {[%emt 0:00:00]} e6 {[%emt 0:02:33]} 2. Nf3 {[%emt 0:00:06]} c5 {[%emt 0:01:04]} 3. e3 {[%emt 0:00:42]} Nf6 {[%emt 0:00:35]} 4. Bd3 {[%emt 0:00:38]} d5 {[%emt 0:05:15]} 5. b3 {[%emt 0:00:40]} cxd4 {[%emt 0:03:24]} 6. exd4 {[%emt 0:00:56]} Nc6 {[%emt 0:02:45]} 7. Nbd2 {[%emt 0:03:03]} Bb4 {[%emt 0:09:37]} 8. Bb2 {[%emt 0:08:39]} a6 {[%emt 0:22:16]} 9. a3 {[%emt 0:05:07]} Bd6 {[%emt 0:06:27]} 10. Ne5 {[%emt 0:07:34]} Qc7 {[%emt 0:01:26]} 11. f4 {[%emt 0:03:15]} b5 {[%emt 0:03:39]} 12. Rc1 {[%emt 0:06:55]} Qb6 {[%emt 0:25:14]} (12... b4 $11 13. axb4 Nxb4) 13. c3 {[%emt 0:12:57]} Bb7 {[%emt 0:02:38]} 14. O-O {[%emt 0:05:25]} Bxe5 $17 {[%emt 0:02:52]} 15. fxe5 {[%emt 0:05:06]} Nxe5 {[%emt 0:00:27]} 16. Bc2 {[%emt 0:04:02]} O-O {[%emt 0:04:45]} 17. Kh1 {[%emt 0:05:44]} Neg4 {[%emt 0:06:14]} 18. Qe2 {[%emt 0:00:31]} Qd6 {[%emt 0:01:16]} 19. Nf3 {[%emt 0:03:28]} Ne4 {[%emt 0:02:13]} 20. g3 {[%emt 0:16:21]} Rac8 {[%emt 0:05:54]} 21. Bb1 {[%emt 0:01:39]} f5 {[%emt 0:00:27]} 22. Nh4 {[%emt 0:13:30]} Rf6 {[%emt 0:01:10]} 0-1

[Event "Gibraltar Amateurs A 2019"]
[Site "Caleta"]
[Date "2019.01.21"]
[Round "1"]
[White "Stai, Sondre"]
[Black "Lochte, Szilvia"]
[Result "1-0"]
[ECO "B33"]
[WhiteElo "1659"]
[BlackElo "1868"]
[Annotator "NA"]
[PlyCount "56"]
[EventDate "2019.01.21"]
[EventType "swiss"]
[EventCountry "GGB"]
[SourceTitle "playchess.com"]
[Source "ChessBase"]
[SourceQuality "1"]
[TimeControl "6600+10"]

1. e4 {[%emt 0:03:32]} c5 {[%emt 0:00:00]} 2. Nf3 {[%emt 0:00:32]} e6 {[%emt 0:00:07]} 3. d4 {[%emt 0:00:08]} cxd4 {[%emt 0:00:07]} 4. Nxd4 {[%emt 0:00:05]} a6 {[%emt 0:00:05]} 5. Bd3 {[%emt 0:00:16]} Nf6 {[%emt 0:01:14]} 6. Nc3 {[%emt 0:02:02]} Qc7 {[%emt 0:00:52]} 7. O-O {[%emt 0:03:53]} Bc5 {[%emt 0:02:17]} 8. Nb3 {[%emt 0:01:32]} Be7 {[%emt 0:00:22]} 9. a4 {[%emt 0:02:34]} Nc6 {[%emt 0:06:52]} 10. Be3 {[%emt 0:07:15] B33: Sicilian: Pelikan and Sveshnikov Variations} (10. a5 O-O 11. Be3 Ne5 12. Bb6 Qb8 13. Be2 d6 14. Qd2 Bd7 15. f4 Ng6 16. Bd3 Bc6 17. Be3 Rd8 {½-½ (50) Bruzon Batista,L (2622)-Ehlvest,J (2581) Merida 2008}) 10... b6 {[%emt 0:09:53]} 11. f3 {[%emt 0:04:26]} O-O {[%emt 0:08:07]} 12. Qe2 {[%emt 0:02:48]} d6 {[%emt 0:07:57]} 13. Qf2 {[%emt 0:07:01]} Nd7 {[%emt 0:06:47]} 14. Rfd1 {[%emt 0:07:43]} Nc5 $146 {[%emt 0:10:44]} ({Predecessor:} 14... Bb7 15. Kh1 Rfe8 16. Nd4 Nce5 17. Qg3 {1-0 (51) Froehlich,P (2351)-Louie,R (1810) Brisbane 2012}) 15. Bf1 {[%emt 0:02:19]} Bb7 {[%emt 0:04:42]} 16. Qg3 {[%emt 0:09:23]} Rac8 {[%emt 0:07:48]} 17. Rd2 {[%emt 0:17:56]} Nxb3 {[%emt 0:17:44]} 18. cxb3 {[%emt 0:00:52]} Na5 {[%emt 0:01:52]} 19. Rad1 {[%emt 0:08:39]} Nxb3 {[%emt 0:03:51]} 20. Bh6 {[%emt 0:00:46]} Bf6 {[%emt 0:10:11]} 21. Rxd6 {[%emt 0:01:11]} Qc5+ {[%emt 0:00:57]} 22. Kh1 {[%emt 0:02:37]} Qh5 {[%emt 0:01:57]} 23. Bf4 {[%emt 0:06:04]} Qc5 {[%emt 0:04:19]} 24. e5 {[%emt 0:02:34]} Be7 {[%emt 0:02:58]} 25. Bh6 {[%emt 0:00:26]} g6 {[%emt 0:00:14]} 26. Bxf8 {[%emt 0:00:42]} Kxf8 {[%emt 0:01:27]} 27. R6d3 {[%emt 0:02:55]} Na5 $18 {[%emt 0:00:36]} (27... Qb4 $16 28. Qf2 Bc6) 28. f4 {[%emt 0:04:59]} Nc4 {[%emt 0:00:31]} 1-0

[Event "Gibraltar Amateurs A 2019"]
[Site "Caleta"]
[Date "2019.01.21"]
[Round "1"]
[White "White, Gary"]
[Black "Robson, Paul E"]
[Result "0-1"]
[ECO "B06"]
[WhiteElo "1623"]
[BlackElo "1861"]
[Annotator "NA"]
[PlyCount "66"]
[EventDate "2019.01.21"]
[EventType "swiss"]
[EventCountry "GGB"]
[SourceTitle "playchess.com"]
[Source "ChessBase"]
[SourceQuality "1"]
[TimeControl "6600+10"]

1. f4 {[%emt 0:00:00]} g6 {[%emt 0:00:17]} 2. Nf3 {[%emt 0:00:01]} Bg7 {[%emt 0:00:10]} 3. e4 {[%emt 0:00:39]} d5 {[%emt 0:03:36]} 4. e5 {[%emt 0:02:45]} c5 {[%emt 0:02:07] B06: Modern Defence} 5. d4 {[%emt 0:02:02]} Bg4 {[%emt 0:05:21]} 6. Be2 {[%emt 0:01:40]} Nc6 {[%emt 0:04:25]} 7. Bb5 $146 {[%emt 0:24:24]} ({Predecessor:} 7. c3 cxd4 8. Nxd4 Bxe2 9. Qxe2 Nxd4 10. cxd4 e6 11. Nc3 h5 12. O-O Nh6 {0-1 (26) Hernandez,G (2495)-Moreno Carnero,J Spain 1992}) 7... Bxf3 {[%emt 0:07:50]} 8. Qxf3 {[%emt 0:00:09]} cxd4 {[%emt 0:07:42]} 9. O-O {[%emt 0:05:12]} e6 {[%emt 0:00:40]} 10. Qd3 {[%emt 0:03:45]} Qb6 {[%emt 0:06:22]} 11. b3 {[%emt 0:07:29]} Nge7 {[%emt 0:03:37]} 12. Ba3 {[%emt 0:12:16]} Rc8 {[%emt 0:10:17]} 13. Nd2 {[%emt 0:01:46]} a6 {[%emt 0:03:22]} 14. Bxc6+ {[%emt 0:04:27]} bxc6 {[%emt 0:10:40]} 15. Nf3 {[%emt 0:07:30]} c5 {[%emt 0:01:26]} 16. Rab1 {[%emt 0:00:32]} Nc6 {[%emt 0:01:43]} 17. g4 {[%emt 0:04:20]} Qa5 {[%emt 0:04:08]} 18. Bb2 {[%emt 0:07:54]} O-O {[%emt 0:05:53]} 19. a3 {[%emt 0:00:57]} Qb6 {[%emt 0:05:15]} 20. Kh1 {[%emt 0:03:09]} f6 {[%emt 0:04:40]} 21. f5 {[%emt 0:06:57]} exf5 {[%emt 0:09:02]} 22. gxf5 {[%emt 0:00:43]} Nxe5 {[%emt 0:01:14]} 23. Nxe5 {[%emt 0:00:48]} fxe5 {[%emt 0:00:08]} 24. fxg6 {[%emt 0:00:09]} Qxg6 {[%emt 0:00:21]} 25. Qxg6 {[%emt 0:03:56]} Rxf1+ {[%emt 0:01:10]} 26. Kg2 {[%emt 0:01:07]} hxg6 {[%emt 0:00:38]} 27. Kxf1 {[%emt 0:00:36]} e4 {[%emt 0:02:45]} 28. Ke2 {[%emt 0:00:35]} Rf8 {[%emt 0:01:38]} 29. Rg1 {[%emt 0:00:41]} Kh7 $19 {[%emt 0:01:13]} 30. Bc1 {[%emt 0:01:30]} Be5 {[%emt 0:01:32]} 31. Bg5 {[%emt 0:00:38]} Rf3 {[%emt 0:01:01]} 32. Be7 {[%emt 0:00:49]} c4 {[%emt 0:00:34]} 33. bxc4 {[%emt 0:01:40]} dxc4 {[%emt 0:00:02]} 0-1

[Event "Gibraltar Amateurs A 2019"]
[Site "Caleta"]
[Date "2019.01.21"]
[Round "1"]
[White "Sagar Siya"]
[Black "Marcos Herrero, Francisco"]
[Result "1-0"]
[ECO "B35"]
[WhiteElo "1616"]
[BlackElo "1855"]
[Annotator "NA"]
[PlyCount "119"]
[EventDate "2019.01.21"]
[EventType "swiss"]
[EventCountry "GGB"]
[SourceTitle "playchess.com"]
[Source "ChessBase"]
[SourceQuality "1"]
[TimeControl "6600+10"]

1. e4 {[%emt 0:00:10]} c5 {[%emt 0:00:00]} 2. Nf3 {[%emt 0:00:09]} Nc6 {[%emt 0:00:00]} 3. d4 {[%emt 0:00:17]} cxd4 {[%emt 0:00:06]} 4. Nxd4 {[%emt 0:00:09]} g6 {[%emt 0:00:03]} 5. Nc3 {[%emt 0:00:16]} Bg7 {[%emt 0:00:27]} 6. Be3 {[%emt 0:00:13]} Nf6 {[%emt 0:00:28]} 7. f3 {[%emt 0:00:36]} O-O {[%emt 0:00:08] LiveBook: 142 Games} 8. Bc4 {[%emt 0:00:08]} Qb6 {[%emt 0:05:01]} 9. Rb1 {[%emt 0:45:18] B35: Sicilian: Accelerated Dragon with 5 Nc3: main line} (9. e5 Nxe5 10. Bb3 Qa5 11. O-O d6 12. Kh1 Bd7 13. f4 Neg4 14. Bg1 Qh5 15. Qd3 a6 16. Rae1 e6 {0-1 (44) Biolek,R (2445)-Kislinsky,A (2481) Ostrava 2017}) 9... Ng4 {[%emt 0:03:00]} 10. fxg4 {[%emt 0:01:24]} Bxd4 {[%emt 0:03:26]} 11. Bxd4 {[%emt 0:00:37]} Qxd4 {[%emt 0:01:36]} 12. Qxd4 {[%emt 0:00:44]} Nxd4 {[%emt 0:00:02]} 13. Kd2 {[%emt 0:00:57]} d6 {[%emt 0:00:26]} 14. h3 $146 {[%emt 0:01:00]} ({Predecessor:} 14. Nd5 Nc6 15. g5 Be6 16. h4 Rac8 {½-½ (43) Variniac,E-Joydev,S (2107) Bischwiller 1999}) 14... Bd7 {[%emt 0:01:35]} 15. Nd5 {[%emt 0:01:02]} Nc6 {[%emt 0:01:37]} 16. Bb5 {[%emt 0:01:02]} Rae8 {[%emt 0:02:38]} 17. Rhf1 {[%emt 0:02:10]} f6 {[%emt 0:01:45]} 18. Rbe1 {[%emt 0:02:53]} Kg7 {[%emt 0:00:37]} 19. a4 {[%emt 0:02:39]} a6 {[%emt 0:01:12]} 20. Bxc6 {[%emt 0:00:59]} bxc6 {[%emt 0:03:28]} 21. Nc3 {[%emt 0:03:58]} h6 {[%emt 0:02:47]} 22. a5 {[%emt 0:00:43]} Rb8 {[%emt 0:00:29]} 23. b3 {[%emt 0:00:47]} e5 {[%emt 0:05:05]} 24. Na4 {[%emt 0:01:02]} Rb5 {[%emt 0:06:39]} 25. Nb6 {[%emt 0:01:34]} Be6 {[%emt 0:00:07]} 26. Ra1 {[%emt 0:00:45]} d5 {[%emt 0:00:20]} 27. exd5 {[%emt 0:00:58]} cxd5 {[%emt 0:00:07]} 28. Rfb1 {[%emt 0:02:32]} Rd8 {[%emt 0:00:48]} 29. b4 {[%emt 0:02:07]} f5 {[%emt 0:05:20]} 30. gxf5 {[%emt 0:01:20]} gxf5 {[%emt 0:00:19]} 31. Na4 {[%emt 0:00:27]} h5 {[%emt 0:04:30]} 32. Nc5 {[%emt 0:01:29]} Bc8 {[%emt 0:00:49]} 33. h4 {[%emt 0:01:07]} Kf6 {[%emt 0:00:30]} 34. Ra3 {[%emt 0:00:48]} Rg8 {[%emt 0:00:43]} 35. g3 {[%emt 0:00:48]} Rg4 {[%emt 0:03:03]} 36. Rab3 {[%emt 0:01:38]} d4 {[%emt 0:02:24]} 37. Rf3 {[%emt 0:02:10]} e4 {[%emt 0:00:24]} 38. Rf4 {[%emt 0:00:50]} Ke5 {[%emt 0:01:02]} 39. Rxg4 {[%emt 0:00:47]} fxg4 {[%emt 0:01:31]} 40. c3 {[%emt 0:01:52]} e3+ {[%emt 0:02:14]} 41. Ke2 {[%emt 0:01:02]} dxc3 {[%emt 0:00:48]} 42. Kxe3 {[%emt 0:01:03]} Bf5 {[%emt 0:01:21]} 43. Nd3+ {[%emt 0:01:53]} Kd5 {[%emt 0:01:04]} 44. Rf1 $11 {[%emt 0:01:15]} Kc4 {[%emt 0:00:35]} 45. Rf4+ {[%emt 0:00:53]} Kb3 {[%emt 0:03:05]} 46. Nc5+ {[%emt 0:01:25]} Ka2 {[%emt 0:07:38]} 47. Rxf5 {[%emt 0:01:00]} Rxb4 {[%emt 0:01:10]} 48. Kd3 {[%emt 0:01:15]} c2 {[%emt 0:03:08]} 49. Kxc2 {[%emt 0:01:26]} Rb2+ {[%emt 0:00:29]} 50. Kd3 {[%emt 0:00:14]} Ka3 {[%emt 0:01:04]} 51. Rxh5 {[%emt 0:00:48]} Rf2 {[%emt 0:00:12]} 52. Ne4 {[%emt 0:01:03]} Rf3+ {[%emt 0:00:12]} 53. Kd4 {[%emt 0:00:30]} Kb4 {[%emt 0:00:20]} 54. Rg5 {[%emt 0:00:26]} Ra3 {[%emt 0:00:34]} 55. h5 {[%emt 0:00:38]} Ra1 {[%emt 0:00:45]} 56. h6 {[%emt 0:01:32]} Rh1 {[%emt 0:00:13]} 57. Rg6 {[%emt 0:00:23]} Kxa5 {[%emt 0:00:36]} 58. Ng5 {[%emt 0:00:30]} Kb5 {[%emt 0:01:00]} 59. h7 {[%emt 0:00:34]} a5 {[%emt 0:01:19]} 60. Rg8 {[%emt 0:00:25]} 1-0

[Event "Gibraltar Amateurs A 2019"]
[Site "Caleta"]
[Date "2019.01.21"]
[Round "1"]
[White "Savage, Neil"]
[Black "Gostelow, David W"]
[Result "0-1"]
[ECO "B23"]
[WhiteElo "1585"]
[BlackElo "1850"]
[Annotator "NA"]
[PlyCount "42"]
[EventDate "2019.01.21"]
[EventType "swiss"]
[EventCountry "GGB"]
[SourceTitle "playchess.com"]
[Source "ChessBase"]
[SourceQuality "1"]
[TimeControl "6600+10"]

1. e4 {[%emt 0:00:00]} c5 {[%emt 0:00:00]} 2. Nc3 {[%emt 0:00:14]} e6 {[%emt 0:00:02]} 3. f4 {[%emt 0:00:25]} a6 {[%emt 0:00:59]} 4. Nf3 {[%emt 0:00:50]} d5 {[%emt 0:00:48]} 5. d3 {[%emt 0:02:10]} Nc6 {[%emt 0:00:34]} 6. e5 {[%emt 0:07:32]} b5 {[%emt 0:02:57]} 7. a3 {[%emt 0:03:45]} Qb6 {[%emt 0:03:06]} 8. Be2 {[%emt 0:05:07]} Nh6 {[%emt 0:07:59]} 9. O-O {[%emt 0:06:16]} c4+ {[%emt 0:09:49]} 10. Kh1 {[%emt 0:03:44]} Bc5 {[%emt 0:01:46]} 11. dxc4 {[%emt 0:02:44]} bxc4 {[%emt 0:06:56]} 12. Na4 {[%emt 0:02:22]} Qa7 {[%emt 0:00:23]} 13. Nxc5 {[%emt 0:00:47]} Qxc5 {[%emt 0:00:03]} 14. b4 {[%emt 0:11:55]} Qb6 $11 {[%emt 0:04:54]} 15. Qe1 {[%emt 0:12:29]} O-O {[%emt 0:01:17]} 16. Qc3 {[%emt 0:01:39]} Rd8 {[%emt 0:03:09]} 17. Rd1 {[%emt 0:02:52]} Ng4 {[%emt 0:03:27]} 18. Rd4 {[%emt 0:15:49]} Nxd4 {[%emt 0:02:13]} 19. Nxd4 {[%emt 0:00:19]} Nf2+ {[%emt 0:02:40]} 20. Kg1 {[%emt 0:00:06]} Ne4 {[%emt 0:00:24]} 21. Qe1 {[%emt 0:02:00]} Qxd4+ {[%emt 0:00:20]} 0-1

[Event "Gibraltar Amateurs A 2019"]
[Site "Caleta"]
[Date "2019.01.21"]
[Round "1"]
[White "Greco, Joseph"]
[Black "Sahil Dhawan"]
[Result "0-1"]
[ECO "B43"]
[WhiteElo "1574"]
[BlackElo "1843"]
[Annotator "NA"]
[PlyCount "137"]
[EventDate "2019.01.21"]
[EventType "swiss"]
[EventCountry "GGB"]
[SourceTitle "playchess.com"]
[Source "ChessBase"]
[SourceQuality "1"]
[TimeControl "6600+10"]

1. e4 {[%emt 0:11:56]} c5 {[%emt 0:00:21]} 2. Nf3 {[%emt 0:00:16]} e6 {[%emt 0:00:16]} 3. d4 {[%emt 0:01:08]} cxd4 {[%emt 0:00:20]} 4. Nxd4 {[%emt 0:00:16]} a6 {[%emt 0:01:45]} 5. Nc3 {[%emt 0:02:00]} Qc7 {[%emt 0:00:08]} 6. Be3 {[%emt 0:06:36]} Nf6 {[%emt 0:00:39]} 7. f3 {[%emt 0:03:06]} b5 {[%emt 0:00:38] LiveBook: 7 Games B43: Sicilian: Kan Variation: 5 Nc3} (7... Bb4 8. Qd2 d5 9. Nde2 dxe4 10. a3 Ba5 11. O-O-O Nbd7 12. Bf4 e5 13. Bg5 O-O 14. Ng3 Bxc3 15. bxc3 Qa5 16. Kb2 Nc5 17. Bxf6 {1-0 (68) Nakamura,H (2775)-Van Wely,L (2654) Dubai 2014}) 8. Bd3 {[%emt 0:03:05]} Bb7 {[%emt 0:00:48]} 9. O-O {[%emt 0:01:02]} Be7 {[%emt 0:01:22]} 10. Rc1 $146 {[%emt 0:06:06]} ({Predecessor:} 10. Qe2 O-O 11. a3 d6 12. Kh1 Nbd7 13. Rad1 Nc5 14. Qd2 Nxd3 15. Qxd3 Nd7 {0-1 (38) Wakuruwarewa,C (1577)-Miladi,A (1702) Batumi 2018}) 10... O-O {[%emt 0:01:34]} 11. Nce2 {[%emt 0:03:14]} d5 {[%emt 0:00:38]} 12. exd5 {[%emt 0:09:57]} Nxd5 {[%emt 0:00:07]} 13. Bf2 {[%emt 0:00:14]} Bg5 {[%emt 0:02:58]} 14. Ra1 {[%emt 0:02:05]} Nd7 {[%emt 0:02:44]} 15. c3 {[%emt 0:04:37]} g6 {[%emt 0:07:16]} 16. Qc2 {[%emt 0:03:41]} e5 {[%emt 0:03:25]} 17. Nb3 {[%emt 0:01:17]} Rac8 $17 {[%emt 0:02:06]} (17... f5 $142 18. Rae1 Rad8) 18. a3 {[%emt 0:02:54]} Ne3 {[%emt 0:06:55]} 19. Bxe3 {[%emt 0:01:18]} Bxe3+ {[%emt 0:00:02]} 20. Kh1 {[%emt 0:00:11]} f5 {[%emt 0:01:19]} 21. Ng3 {[%emt 0:03:47]} Nf6 {[%emt 0:06:00]} 22. Rfe1 {[%emt 0:02:33]} Bf4 {[%emt 0:04:53]} 23. Nf1 {[%emt 0:09:02]} Rfd8 {[%emt 0:09:39]} 24. Rad1 {[%emt 0:01:03]} Qb6 {[%emt 0:03:33]} 25. Be2 {[%emt 0:06:49]} e4 {[%emt 0:03:13]} 26. Rxd8+ {[%emt 0:01:43]} Rxd8 {[%emt 0:00:10]} 27. Rd1 {[%emt 0:01:02]} exf3 {[%emt 0:01:16]} 28. Rxd8+ {[%emt 0:00:21]} Qxd8 {[%emt 0:00:02]} 29. Bxf3 {[%emt 0:00:28]} Bxf3 {[%emt 0:01:11]} 30. gxf3 {[%emt 0:00:06]} Qd5 {[%emt 0:00:04]} 31. Nd4 {[%emt 0:01:03]} Ng4 {[%emt 0:02:40]} 32. Qb3 {[%emt 0:00:46]} Qxb3 {[%emt 0:01:21]} 33. Nxb3 {[%emt 0:00:02]} Nf2+ {[%emt 0:00:06]} 34. Kg2 {[%emt 0:00:52]} Nd3 {[%emt 0:00:03]} 35. Ng3 {[%emt 0:01:34]} Bd6 {[%emt 0:01:38]} 36. Ne2 {[%emt 0:03:25]} Nxb2 {[%emt 0:01:03]} 37. Ned4 {[%emt 0:00:48]} Bxa3 {[%emt 0:00:42]} 38. Nd2 {[%emt 0:01:19]} Nd1 {[%emt 0:02:58]} 39. Nc2 {[%emt 0:01:00]} Bc1 {[%emt 0:04:03]} 40. Nb3 {[%emt 0:00:25]} Bb2 {[%emt 0:00:22]} 41. Nb4 {[%emt 0:01:01]} Bxc3 {[%emt 0:02:21]} 42. Nxa6 {[%emt 0:00:18]} Kf7 {[%emt 0:01:35]} 43. Kf1 {[%emt 0:02:51]} Ke7 {[%emt 0:03:04]} 44. Ke2 {[%emt 0:02:09]} Nb2 {[%emt 0:00:07]} 45. Nc7 {[%emt 0:01:36]} b4 {[%emt 0:00:10]} 46. Nd5+ {[%emt 0:02:28]} Kd6 {[%emt 0:01:02]} 47. Nxc3 {[%emt 0:00:29]} bxc3 {[%emt 0:00:04]} 48. Ke3 {[%emt 0:00:45]} Kd5 {[%emt 0:00:32]} 49. f4 {[%emt 0:01:20]} Kc4 {[%emt 0:01:16]} 50. Nc1 {[%emt 0:00:18]} Na4 {[%emt 0:01:40]} 51. h3 {[%emt 0:01:23]} Nb6 {[%emt 0:00:15]} 52. h4 {[%emt 0:00:38]} Nd5+ {[%emt 0:00:08]} 53. Kf3 {[%emt 0:00:12]} c2 {[%emt 0:00:27]} 54. Kg3 {[%emt 0:00:23]} Kc3 {[%emt 0:00:34]} 55. h5 {[%emt 0:00:26]} Kd2 {[%emt 0:00:44]} 56. Nb3+ {[%emt 0:00:57]} Kd1 {[%emt 0:01:50]} 57. hxg6 {[%emt 0:00:36]} hxg6 {[%emt 0:00:01]} 58. Kh4 {[%emt 0:00:53]} c1=Q {[%emt 0:00:53]} 59. Nxc1 {[%emt 0:00:03]} Kxc1 {[%emt 0:00:02]} 60. Kg5 {[%emt 0:00:17]} Nxf4 {[%emt 0:00:07]} 61. Kxf4 {[%emt 0:00:27]} Kd2 {[%emt 0:00:05]} 62. Kf3 {[%emt 0:00:15]} Ke1 {[%emt 0:00:47]} 63. Ke3 {[%emt 0:00:15]} g5 {[%emt 0:00:22]} 64. Kf3 {[%emt 0:00:06]} Kf1 {[%emt 0:00:04]} 65. Kg3 {[%emt 0:00:13]} Ke2 {[%emt 0:00:06]} 66. Kh3 {[%emt 0:00:24]} f4 {[%emt 0:00:10]} 67. Kh2 {[%emt 0:00:23]} f3 {[%emt 0:00:10]} 68. Kg3 {[%emt 0:01:06]} f2 {[%emt 0:00:07]} 69. Kh2 {[%emt 0:00:08]} 0-1

[Event "Gibraltar Amateurs A 2019"]
[Site "Caleta"]
[Date "2019.01.22"]
[Round "2"]
[White "Gonzalez Pabollet, Jesus Maria S"]
[Black "Escanciano Reyero, Daniel"]
[Result "0-1"]
[ECO "D02"]
[WhiteElo "1875"]
[BlackElo "1732"]
[Annotator "NA"]
[PlyCount "106"]
[EventDate "2019.01.18"]
[EventType "swiss"]
[EventCountry "GGB"]
[SourceTitle "playchess.com"]
[Source "ChessBase"]
[SourceQuality "1"]
[TimeControl "6600+10"]

1. Nf3 {[%emt 0:01:23]} d5 {[%emt 0:00:08]} 2. d4 {[%emt 0:00:50]} Bg4 {[%emt 0:02:05]} 3. Ne5 {[%emt 0:08:56]} Bf5 {[%emt 0:00:33]} 4. g4 {[%emt 0:12:52]} Be6 {[%emt 0:10:08]} 5. h3 {[%emt 0:10:08]} Nd7 {[%emt 0:01:27]} 6. Bf4 {[%emt 0:04:06]} Nxe5 {[%emt 0:02:23]} 7. dxe5 {[%emt 0:02:47]} d4 {[%emt 0:02:53]} 8. Bg2 {[%emt 0:00:36]} Bd5 {[%emt 0:00:26]} 9. e4 {[%emt 0:01:37]} Bc6 {[%emt 0:02:09]} 10. Nd2 {[%emt 0:21:34]} e6 {[%emt 0:00:20]} 11. Nb3 {[%emt 0:04:19]} Bb4+ {[%emt 0:04:17]} 12. Bd2 {[%emt 0:00:43]} Be7 {[%emt 0:07:53]} 13. Ba5 {[%emt 0:04:19]} d3 {[%emt 0:14:03]} 14. Qxd3 {[%emt 0:05:13]} Qxd3 {[%emt 0:01:17]} 15. cxd3 {[%emt 0:00:02]} O-O-O {[%emt 0:00:18]} 16. O-O-O {[%emt 0:10:17]} Ba4 {[%emt 0:08:23]} 17. f4 {[%emt 0:04:32]} Bxb3 {[%emt 0:00:48]} 18. axb3 {[%emt 0:00:02]} Bc5 {[%emt 0:06:19]} 19. Kc2 {[%emt 0:06:42]} Ne7 {[%emt 0:00:00]} 20. Bc3 {[%emt 0:03:17]} Nc6 {[%emt 0:00:00]} 21. Ra1 {[%emt 0:02:31]} a6 {[%emt 0:00:00]} 22. g5 {[%emt 0:03:10]} Rd7 {[%emt 0:00:08]} 23. h4 {[%emt 0:00:59]} Rhd8 {[%emt 0:01:34]} 24. Rad1 {[%emt 0:02:03]} b5 {[%emt 0:01:30]} 25. f5 {[%emt 0:00:00]} b4 {[%emt 0:00:32]} 26. fxe6 {[%emt 0:00:00]} fxe6 {[%emt 0:00:10]} 27. Be1 {[%emt 0:00:00]} Kb7 {[%emt 0:03:50]} 28. Bh3 {[%emt 0:00:22]} Rf7 {[%emt 0:04:56]} 29. Bxe6 {[%emt 0:00:06]} Nd4+ {[%emt 0:00:11]} 30. Kb1 {[%emt 0:00:13]} Nxe6 {[%emt 0:00:12]} 31. h5 {[%emt 0:00:38]} Nxg5 {[%emt 0:00:41]} 32. Bh4 {[%emt 0:00:07]} h6 {[%emt 0:00:08]} 33. Bxg5 {[%emt 0:00:16]} hxg5 {[%emt 0:00:17]} 34. h6 {[%emt 0:00:13]} gxh6 {[%emt 0:00:04]} 35. Rxh6 {[%emt 0:00:14]} Re7 {[%emt 0:01:51]} 36. e6 {[%emt 0:00:10]} Be3 {[%emt 0:01:12]} 37. Rg6 {[%emt 0:00:37]} Rd6 {[%emt 0:00:58]} 38. Re1 {[%emt 0:00:11]} Rxd3 {[%emt 0:02:17]} 39. Kc2 {[%emt 0:00:01]} Rd2+ $19 {[%emt 0:00:16]} 40. Kc1 {[%emt 0:00:02]} Re2+ {[%emt 0:00:24]} 41. Kd1 {[%emt 0:00:01]} Rxe1+ {[%emt 0:00:32]} 42. Kxe1 {[%emt 0:00:01]} Kc6 {[%emt 0:00:56]} 43. Ke2 {[%emt 0:00:43]} Bf4 {[%emt 0:00:11]} 44. Kd3 {[%emt 0:00:12]} Kc5 {[%emt 0:01:07]} 45. Rf6 {[%emt 0:00:12]} a5 {[%emt 0:01:59]} 46. Rf5+ {[%emt 0:00:09]} Kb6 {[%emt 0:00:40]} 47. Rf6 {[%emt 0:00:12]} Kc5 {[%emt 0:01:45]} 48. Rf5+ {[%emt 0:00:06]} Kd6 {[%emt 0:00:08]} 49. Rxa5 {[%emt 0:00:12]} Kxe6 {[%emt 0:00:14]} 50. Kc4 {[%emt 0:00:16]} Rg7 {[%emt 0:00:56]} 51. Kxb4 {[%emt 0:00:04]} Bd2+ {[%emt 0:00:30]} 52. Kb5 {[%emt 0:00:09]} Bxa5 {[%emt 0:00:16]} 53. Kxa5 {[%emt 0:00:01]} g4 {[%emt 0:00:51]} 0-1